Workbook

Sheet Cover
D3: Amendments made on 6 August 2014.
D4: Click here for details.
A8: Distribution Network Service Provider
A9: Annual reporting template
A11: This template is to be used by a DNSP to fulfil its annual reporting obligations to the AER.
A13: Colour coding of input sheets:
A14: Dark blue - Headings
A15: Yellow - Input cells
A16: Grey - No inputs required
A18: Leave coloured cells blank if no information exists - PLEASE DO NOT ENTER TEXT unless specifically requested to do so.
A19: All dollar amounts are to be in nominal terms.
A22: DNSP - trading name: | C22: ActewAGL
A24: DNSP - Australian business number: | C24: 76 670 568 688
A26: Reporting year: | C26: 2013-14
A31: Business address | B31: Address | D31: 40 Bunda Street
B32: Suburb | D32: Canberra
C33: State | D33: ACT | E33: Postcode | F33: 2601
A35: Postal address | B35: Address | D35: GPO Box 366
B36: Suburb | D36: Canberra
C37: State | D37: ACT | E37: Postcode | F37: 2601
A40: Contact name/s | B40: Robert Walker
A41: Contact phone/s | B41: 02 6248 3847
A42: Contact email address/s | B42: Robert.Walker@actewagl.com.au

Sheet Contents
C3: Electricity DNSP Annual Reporting Template
C4: Table of contents
C7: Cover sheet
C8: 1. Income statement
C9: 2. Balance sheet (deleted)
C10: 3. Cashflows statement (deleted)
C11: 4. Changes in equity (deleted)
C12: 5. Capex
C13: 6. Capex overheads (deleted)
C14: 7. Capex for tax depreciation
C15: 8. Maintenance
C16: 9. Maintenance overheads (deleted)
C17: 10. Operating costs
C18: 11. Operating overheads (deleted)
C19: 12. Cost categories (deleted)
C20: 13. Opex step change (deleted)
C21: 14. Provisions (deleted)
C22: 15. Overheads allocation (deleted)
C23: 16. Avoided cost payments
C24: 17. Alternative control & other
C25: 18. EBSS
C26: 19. Jurisdictional scheme
C27: 20. DMIS _ DMIA
C28: 21. Self insurance
C29: 22. Change in accounting policy

Sheet 1. Income
B1: ActewAGL
B2: Income Statement
B3: =Cover!C26 -> 2013-14
B5: This information is used to monitor revenues for each service classification. Elements of the information are used to calculate financial ratios, used for intra and inter-business comparison and the AER will also monitor and report on information such as dividend payment, tax payments, depreciation and profit.
B7: Table 1: Income statement
B9: Statutory Account code or reference to account code | C9: Description | D9: Audited statutory accounts | E9: Adjustments | F9: Distribution business | G9: Standard control services | H9: Alternative control services | I9: Negotiated services | J9: Unregulated services
H10: Metering
D11: $'000 nominal | E11: $'000 nominal | F11: $'000 nominal | G11: $'000 nominal | H11: $'000 nominal | I11: $'000 nominal | J11: $'000 nominal
C12: Distribution revenue | D12: 306873.8652 | E12: =D12-F12 -> 71319.20963 | F12: =SUM(G12:J12) -> 235554.6556 | G12: 226457.7019 | H12: 8717.51359 | J12: 379.44005
C13: TUOS revenue | D13: 0 | E13: =D13-F13 -> 0 | F13: =SUM(G13:J13) -> 0 | G13: 0 | H13: 0 | J13: 0
C14: Cross boundary revenue | D14: 0 | E14: 0 | F14: 0 | G14: 0 | H14: 0 | J14: 0
C15: Profit from sale of fixed assets | D15: -97.97582 | E15: -212.33388 | F15: 114.35806 | G15: 114.35806 | H15: 0 | J15: 0
C16: Capital contributions | D16: 13648.68242 | E16: -95.40366 | F16: 13744.08608 | G16: 13599.94042 | H16: 144.14566 | J16: 0
C17: Interest income | D17: 1489.36629 | E17: 1487.89773 | F17: 1.46856 | G17: 1.46856 | H17: 0 | J17: 0
C18: Other revenue | D18: 51793.96909 | E18: 40884.47789 | F18: 10909.4912 | G18: 1440.54492 | H18: 0 | J18: 9468.94628
C19: Total revenue | D19: =SUM(D12:D18) -> 373707.9072 | E19: 113383.8477 | F19: 260324.0595 | G19: 241614.0139 | H19: 8861.65925 | I19: 0 | J19: 9848.38633
C20: TUOS costs | D20: 42112.60935 | E20: =D20-F20 -> 0 | F20: =SUM(G20:J20) -> 42112.60935 | G20: 42112.60935 | H20: 0 | J20: 0
C21: Cross boundary charges | D21: 26448.56087 | E21: 7010.50245 | F21: 19438.05842 | G21: 19438.05842 | H21: 0 | J21: 0
C22: Maintenance | D22: ='8. Maintenance'!D34 -> 22787.78468 | E22: ='8. Maintenance'!E34 -> 174.59435 | F22: 22613.19033 | G22: 22199.72755 | H22: 413.46278 | J22: 0
C23: Operating Expenses | D23: 134528.1555 | E23: 59761.06654 | F23: 74767.08894 | G23: 64533.08028 | H23: 1486.09014 | J23: 8747.91852
C24: Depreciation | D24: 41298.31791 | E24: 7448.178767 | F24: 33850.13914 | G24: 33850.13914 | H24: 0 | J24: 0
C25: Finance Charges | D25: 544.23623 | E25: 100.55912 | F25: 443.67711 | G25: 443.67711 | H25: 0 | J25: 0
C26: Loss from sale of fixed assets | D26: 1194.63541 | E26: 28.05 | F26: 1166.58541 | G26: 1166.58541 | H26: 0 | J26: 0
C27: Impairment Losses (nature of the impairment loss) | D27: 0 | E27: 0 | F27: 0 | G27: 0 | H27: 0 | J27: 0
C28: Other | D28: -10608.17307 | E28: 0 | F28: -10608.17307 | G28: -11237.44692 | H28: 267.79515 | J28: 361.4787
C29: Profit before Tax (PBT) | D29: =D19-SUM(D20:D28) -> 115401.7803 | E29: 38860.89648 | F29: 76540.88383 | G29: 69107.58354 | H29: 6694.31118 | I29: 0 | J29: 738.98911
C30: Income Tax Expenses /(Benefit) | D30: 0 | E30: =D30-F30 -> 0 | F30: =SUM(G30:J30) -> 0
C31: Profit after tax | D31: =D29-D30 -> 115401.7803 | E31: 38860.89648 | F31: 76540.88383 | G31: 69107.58354 | H31: 6694.31118 | I31: 0 | J31: 738.98911

Sheet 5. Capex
B1: =Cover!C22 -> ActewAGL
B2: Capex including overheads
B3: =Cover!C26 -> 2013-14
B5: This information is necessary for monitoring capex and will be used to inform the AER's assessment of capex and its underlying drivers at the next reset. It will also be used to assist in any comparative analysis undertaken by the AER within the current and future regulatory control periods.
B7: Table 1: Standard Control Service by Reason
C9: Forecast | D9: Actuals | E9: Difference
B10: System assets | C10: $'000 nominal | D10: $'000 nominal
B11: Asset renewal/replacement | C11: 21506.83078 | D11: 17744.45845 | E11: =(D11-C11)/C11 -> -0.1749384821
B12: Growth (demand related) | C12: 29016.75559 | D12: 44178.38222 | E12: =(D12-C12)/C12 -> 0.5225128144
B13: Reliability and quality of service enhancements | C13: 311.3872547 | D13: -166.2944 | E13: -1.534043695
B14: Environmental, safety, statutory obligations | C14: 0 | D14: 0
B15: Other | C15: 0 | D15: 0
B16: Sub-total | C16: =SUM(C11:C15) -> 50834.97363 | D16: =SUM(D11:D15) -> 61756.54627 | E16: 0.2148436768
B17: Non-system assets
B18: Business support | C18: 2235.182075 | D18: 12071.89425 | E18: 4.400854984
B19: IT systems | C19: 5679.947877 | D19: 21535.8092 | E19: 2.791550498
B20: Total | C20: =SUM(C16:C19) -> 58750.10358 | D20: =SUM(D16:D19) -> 95364.24972 | E20: 0.62321841
B22: Table 2: Explanation of Material Difference
B24: Note: all material differences identified in table 1 are to be explained in table 2.
C26: Explanation
B27: System assets
B28: Asset renewal/replacement | C28: Zone Substation & Pole Replacement Program
B29: Growth (demand related) | C29: The primary reason for higher than expected expenditure is strong growth in both customer initiated residential and commercial developments. In particular, the higher expenditure is related to relocation of assets, new urban developments and commercial construction. Also delays in prior years with the construction of Eastlake & Civic Zone Substations has seen expenditure occur in the later part of the regulatory period.
B30: Reliability and quality of service enhancements | C30: Credit has occurred due to a project for Under Frequency Load Shedding not proceeding materials returned to stores.
B31: Environmental, safety, statutory obligations
B32: Other
B33: Non-system assets
B34: Business support | C34: This additional expenditure was mostly attributed to the Core System Replacement Program (CSRP) which included the replacement of the HR & Finance system. The CSRP was not included in the capital expenditure program that ActewAGL Distribution submitted to the AER at the time of the last determination.
B35: IT systems | C35: The primary reason for higher than forecast expenditure on this item is that ActewAGL has undertaken a comprehensive review of data, systems and business processes. Outcomes of that work included scoping a business improvement Program of Work and associated business case. This has resulted in a delay in prior years acquiring a new Asset and Works Management System, connectivity system as part of the STIPS and NECF requirements and a new Network Billing system.
B37: Table 3: Capex by Asset Class
C39: Forecast | D39: Actual | E39: Difference
B40: Distribution | E40: %
B41: System assets | C41: $'000 nominal | D41: $'000 nominal
B42: Sub-transmission overhead | C42: 1371.299643 | D42: 3564.892127 | E42: =(D42-C42)/C42 -> 1.599644903
B43: Sub-transmission underground | C43: 0 | D43: 0
B44: Zone Substation | C44: 8629.133569 | D44: 15553.31981 | E44: =(D44-C44)/C44 -> 0.8024196391
B45: Distribution Substations | C45: 10917.42264 | D45: 14799.8908 | E45: 0.3556213124
B46: Distribution Overhead Lines | C46: 14427.90177 | D46: 9175.05073 | E46: -0.3640758805
B47: Distribution Underground Lines | C47: 15489.21601 | D47: 18663.3928 | E47: 0.2049281763
B48: Sub-total | C48: =SUM(C42:C47) -> 50834.97363 | D48: =SUM(D42:D47) -> 61756.54627 | E48: 0.2148436768
B49: Non-system assets
B50: IT and communication systems (Networks) | C50: 5679.947877 | D50: 21535.8092 | E50: =(D50-C50)/C50 -> 2.791550498
B51: Motor vehicles | C51: 0 | D51: 2068.26032
B52: IT systems (Corporate) | C52: 221.0685621 | D52: 6672.404057 | E52: =(D52-C52)/C52 -> 29.18250987
B53: Telecommunications (Corporate) | C53: 72.63681325 | D53: 31.58432782 | E53: -0.5651746489
B54: Land | C54: 0 | D54: 0
B55: Buildings | C55: 1357.19946 | D55: 1428.36624 | E55: 0.05243649322
B56: Equity Raising Costs
B57: Other non-system assets (Networks) | C57: 584.2772395 | D57: 825.41644 | E57: 0.4127136644
B58: Other non-system assets (Corporate) | C58: 0 | D58: 1045.862864
B59: Sub-total | C59: =SUM(C50:C58) -> 7915.129951 | D59: =SUM(D50:D58) -> 33607.70345 | E59: 3.246007792
B60: Total | C60: =C48+C59 -> 58750.10358 | D60: =D48+D59 -> 95364.24972 | E60: 0.62321841
B62: Table 4: Alternative Control Services
C64: Forecast | D64: Actuals | E64: Difference
B65: Alternative Control Services - Metering | C65: $'000 nominal | D65: $'000 nominal
B66: Metering | C66: 3742.972244 | D66: 4020.07813 | E66: =(D66-C66)/C66 -> 0.0740336469
B68: Table 5: Other Services
C70: Forecast | D70: Actuals | E70: Difference
B71: Other | C71: $'000 nominal | D71: $'000 nominal
B72: Negotiated Services | E72: =(D72-C72)/C72 -> 
B73: Unregulated Services | E73: =(D73-C73)/C73 -> 
B75: Table 6: Related Party Transactions
B76: Note: list items which are more than 5 per cent of the total standard control or alternative control capex
B78: Related Party | C78: Description of related party transaction | F78: Total capex attributable to related party transaction $'000 nominal
B79: ACTEW CORPORATION LTD | C79: Reimbursement of Expenditure | F79: 1.359654545
B80: JEMENA ASSET MANAGEMENT PTY LTD | C80: Design and construct Civic Zone Upgrade | F80: 751.96347
B81: JEMENA ASSET MANAGEMENT PTY LTD | C81: Design and construct East Lake Zone Substation | F81: 12546.0304
B83: Total related party transaction costs | F83: =SUM(F79:F82) -> 13299.35352
B85: Table 7: Capital Contributions by Asset Class
C87: Forecast | D87: Actual
B88: System assets | C88: $'000 nominal | D88: $'000 nominal
B89: Sub-transmission overhead | C89: 0 | D89: 514.2651418
B90: Sub-transmission underground | C90: 0 | D90: 0
B91: Zone Substation | C91: 0 | D91: 2754.683088
B92: Distribution Substations | C92: 1714.160913 | D92: 4426.526138
B93: Distribution Overhead Lines | C93: 0 | D93: 0
B94: Distribution Underground Lines | C94: 2694.526406 | D94: 5904.466052
B95: Sub-total | C95: =SUM(C89:C94) -> 4408.687319 | D95: =SUM(D89:D94) -> 13599.94042
B96: Non-system assets
B97: IT and communication systems (Networks) | C97: 0 | D97: 0
B98: Motor vehicles | C98: 0 | D98: 0
B99: IT systems (Corporate) | C99: 0 | D99: 0
B100: Telecommunications (Corporate) | C100: 0 | D100: 0
B101: Land | C101: 0 | D101: 0
B102: Buildings | C102: 0 | D102: 0
B103: Equity Raising Costs | C103: 0
B104: Other non-system assets (Networks) | C104: 0 | D104: 0
B105: Other non-system assets (Corporate) | C105: 0 | D105: 0
B106: Sub-total | C106: =SUM(C97:C105) -> 0 | D106: =SUM(D97:D105) -> 0
B108: Table 8: Disposals by Asset Class
C110: Forecast | D110: Actual
B111: System assets | C111: $'000 nominal | D111: $'000 nominal
B112: Sub-transmission overhead | C112: 0 | D112: 0
B113: Sub-transmission underground | C113: 0 | D113: 0
B114: Zone Substation | C114: 0 | D114: 0
B115: Distribution Substations | C115: 0 | D115: 0
B116: Distribution Overhead Lines | C116: 0 | D116: 0
B117: Distribution Underground Lines | C117: 0 | D117: 0
B118: Sub-total | C118: =SUM(C112:C117) -> 0 | D118: =SUM(D112:D117) -> 0
B119: Non-system assets
B120: IT and communication systems (Networks) | C120: 0 | D120: 0
B121: Motor vehicles | C121: 0 | D121: 0
B122: IT systems (Corporate) | C122: 0 | D122: 0
B123: Telecommunications (Corporate) | C123: 0 | D123: 0
B124: Land | C124: 0 | D124: 0
B125: Buildings | C125: 0 | D125: 0
B126: Equity Raising Costs | C126: 0
B127: Other non-system assets (Networks) | C127: 0 | D127: 0
B128: Other non-system assets (Corporate) | C128: 0 | D128: 0
B129: Sub-total | C129: =SUM(C120:C128) -> 0 | D129: =SUM(D120:D128) -> 0

Sheet 7. Capex for tax dep'n
B1: =Cover!C22 -> ActewAGL
B2: Capex for tax depreciation
B3: =Cover!C26 -> 2013-14
B5: This information will be used to allow the roll forward of the regulated asset base.
B7: Table 1: Capex addition and tax standard lives - Standard control services
B9: Asset class | E9: Tax standard lives | F9: Capex additions
B10: ='5. Capex'!B41 -> System assets
B11: ='5. Capex'!B42 -> Sub-transmission overhead | E11: 47.5 | F11: ='5. Capex'!D42 -> 3564.892127
B12: ='5. Capex'!B43 -> Sub-transmission underground | E12: 47.5 | F12: ='5. Capex'!D43 -> 0
B13: ='5. Capex'!B44 -> Zone Substation | E13: 40 | F13: ='5. Capex'!D44 -> 15553.31981
B14: ='5. Capex'!B45 -> Distribution Substations | E14: 40 | F14: ='5. Capex'!D45 -> 14799.8908
B15: ='5. Capex'!B46 -> Distribution Overhead Lines | E15: 45 | F15: ='5. Capex'!D46 -> 9175.05073
B16: ='5. Capex'!B47 -> Distribution Underground Lines | E16: 50 | F16: ='5. Capex'!D47 -> 18663.3928
B17: ='5. Capex'!B48 -> Sub-total | F17: =SUM(F11:F16) -> 61756.54627
B18: ='5. Capex'!B49 -> Non-system assets
B19: ='5. Capex'!B50 -> IT and communication systems (Networks) | E19: 10 | F19: ='5. Capex'!D50 -> 21535.8092
B20: ='5. Capex'!B51 -> Motor vehicles | E20: 8 | F20: ='5. Capex'!D51 -> 2068.26032
B21: ='5. Capex'!B52 -> IT systems (Corporate) | E21: 4.1 | F21: ='5. Capex'!D52 -> 6672.404057
B22: ='5. Capex'!B53 -> Telecommunications (Corporate) | E22: 6.7 | F22: ='5. Capex'!D53 -> 31.58432782
B23: ='5. Capex'!B54 -> Land | E23: n/a | F23: ='5. Capex'!D54 -> 0
B24: ='5. Capex'!B55 -> Buildings | E24: 100 | F24: ='5. Capex'!D55 -> 1428.36624
B25: ='5. Capex'!B56 -> Equity Raising Costs | E25: 44.54931405 | F25: ='5. Capex'!D56 -> 0
B26: ='5. Capex'!B57 -> Other non-system assets (Networks) | E26: 5.8 | F26: ='5. Capex'!D57 -> 825.41644
B27: ='5. Capex'!B58 -> Other non-system assets (Corporate) | E27: 5.7 | F27: ='5. Capex'!D58 -> 1045.862864
B28: ='5. Capex'!B59 -> Sub-total | F28: =SUM(F19:F27) -> 33607.70345
B29: ='5. Capex'!B60 -> Total | F29: =F17+F28 -> 95364.24972

Sheet 8. Maintenance
B1: =Cover!C22 -> ActewAGL
B2: Network maintenance including overheads
B3: =Cover!C26 -> 2013-14
B5: This information is necessary for monitoring maintenance expenditure and will be used to inform the AER's assessment of maintenance expenditure and its underlying drivers at the next reset. It will also be used to assist in any comparative analysis undertaken by the AER within the current and future regulatory control periods.
B7: Table 1: Total network maintenance expenditure by category
B9: Statutory Account code or reference to account code | C9: Description | D9: Audited statutory accounts | E9: Adjustments | F9: Distribution business | G9: Standard control services | J9: Alternative control services | K9: Negotiated services | L9: Unregulated services
G10: Forecast | H10: Actual | I10: Difference | J10: Metering
C11: Network maintenance (NM) costs | D11: $'000 nominal | E11: $'000 nominal | F11: $'000 nominal | G11: $'000 nominal | H11: $'000 nominal | J11: $'000 nominal | K11: $'000 nominal | L11: $'000 nominal
C12: Zone substation
C13: Planned | D13: =SUM(E13:F13) -> 2615.64806 | E13: 20.41078049 | F13: =H13+J13+L13 -> 2595.23728 | G13: 2253.122598 | H13: 2595.23728 | I13: =(H13-G13)/G13 -> 0.1518402423 | J13: 0 | L13: 0
C14: Reactive | D14: =SUM(E14:F14) -> 448.37519 | E14: 3.498822231 | F14: =H14+J14+L14 -> 444.8763678 | G14: 197.4271372 | H14: 444.8763678 | I14: =(H14-G14)/G14 -> 1.253369896 | J14: 0 | L14: 0
C15: Sub-total | D15: =SUM(D13:D14) -> 3064.02325 | E15: =SUM(E13:E14) -> 23.90960272 | F15: 3040.113647 | G15: 2450.549736 | H15: 3040.113647 | I15: =(H15-G15)/G15 -> 0.2405843485 | J15: 0 | L15: =SUM(L13:L14) -> 0
C16: Subtransmission
C17: Planned | D17: =SUM(E17:F17) -> 92.89052 | E17: 0.7248559324 | F17: =H17+J17+L17 -> 92.16566407 | G17: 271.9462661 | H17: 92.16566407 | I17: =(H17-G17)/G17 -> -0.6610886945 | J17: 0 | L17: 0
C18: Reactive | D18: =SUM(E18:F18) -> 152.29506 | E18: 1.188409514 | F18: =H18+J18+L18 -> 151.1066505 | G18: 26.78444872 | H18: 151.1066505 | I18: =(H18-G18)/G18 -> 4.641581504 | J18: 0 | L18: 0
C19: Sub-total | D19: =SUM(D17:D18) -> 245.18558 | E19: =SUM(E17:E18) -> 1.913265446 | F19: 243.2723146 | G19: 298.7307148 | H19: 243.2723146 | I19: =(H19-G19)/G19 -> -0.1856467965 | J19: 0 | L19: =SUM(L17:L18) -> 0
C20: Underground distribution
C21: Planned | D21: =SUM(E21:F21) -> 9.93375 | E21: 0.0775163883 | F21: =H21+J21+L21 -> 9.856233612 | G21: 408.9758941 | H21: 9.856233612 | I21: =(H21-G21)/G21 -> -0.9759002089 | J21: 0 | L21: 0
C22: Reactive | D22: =SUM(E22:F22) -> 28.50482 | E22: 0.2224326861 | F22: =H22+J22+L22 -> 28.28238731 | G22: 1502.528971 | H22: 28.28238731 | I22: =(H22-G22)/G22 -> -0.9811768107 | J22: 0 | L22: 0
C23: Sub-total | D23: =SUM(D21:D22) -> 38.43857 | E23: =SUM(E21:E22) -> 0.2999490744 | F23: 38.13862093 | G23: 1911.504865 | H23: 38.13862093 | I23: =(H23-G23)/G23 -> -0.9800478557 | J23: 0 | L23: =SUM(L21:L22) -> 0
C24: Overhead distribution
C25: Planned | D25: =SUM(E25:F25) -> 9501.64281 | E25: 74.14451074 | F25: =H25+J25+L25 -> 9427.498299 | G25: 8264.935989 | H25: 9427.498299 | I25: =(H25-G25)/G25 -> 0.140661986 | J25: 0 | L25: 0
C26: Reactive | D26: =SUM(E26:F26) -> 9760.35089 | E26: 76.1632968 | F26: =H26+J26+L26 -> 9684.187593 | G26: 2515.423671 | H26: 9684.187593 | I26: =(H26-G26)/G26 -> 2.849923059 | J26: 0 | L26: 0
C27: Sub-total | D27: =SUM(D25:D26) -> 19261.9937 | E27: =SUM(E25:E26) -> 150.3078075 | F27: 19111.68589 | G27: 10780.35966 | H27: 19111.68589 | I27: =(H27-G27)/G27 -> 0.7728245156 | J27: 0 | L27: =SUM(L25:L26) -> 0
C28: Distribution station
C29: Planned | D29: =SUM(E29:F29) -> -236.32179 | E29: -1.844098315 | F29: =H29+J29+L29 -> -234.4776917 | G29: 2265.994861 | H29: -234.4776917 | I29: =(H29-G29)/G29 -> -1.103476709 | J29: 0 | L29: 0
C30: Reactive | D30: =SUM(E30:F30) -> 1.00259 | E30: 0.007823546571 | F30: =H30+J30+L30 -> 0.9947664534 | G30: 255.4861534 | H30: 0.9947664534 | I30: =(H30-G30)/G30 -> -0.9961063782 | J30: 0 | L30: 0
C31: Other
C32: Other network maintenance costs (itemise in table 3 below) | D32: =SUM(E32:F32) -> 413.46278 | E32: 0 | F32: =H32+J32+L32 -> 413.46278 | G32: 0 | H32: 0 | J32: 413.46278 | L32: 0
C33: Sub-total | D33: =SUM(D29:D32) -> 178.14358 | E33: =SUM(E29:E32) -> -1.836274769 | F33: 179.9798548 | G33: 2521.481015 | H33: -233.4829252 | I33: =(H33-G33)/G33 -> -1.092597534 | J33: =SUM(J29:J32) -> 413.46278 | L33: =SUM(L29:L32) -> 0
C34: Total | D34: =SUM(D15,D19,D23,D27,D33,) -> 22787.78468 | E34: =SUM(E15,E19,E23,E27,E33,) -> 174.59435 | F34: =SUM(F15,F19,F23,F27,F33,) -> 22613.19033 | G34: =SUM(G15,G19,G23,G27,G33,) -> 17962.62599 | H34: =SUM(H15,H19,H23,H27,H33,) -> 22199.72755 | I34: =(H34-G34)/G34 -> 0.2358843057 | J34: =SUM(J15,J19,J23,J27,J33,) -> 413.46278 | L34: =SUM(L15,L19,L23,L27,L33,) -> 0
B36: Table 2: Explanation of material difference
B38: Note: all material differences identified in table 1 are to be explained in table 2.
B40: Category | C40: Explanation
B41: Zone substation Planned | C41: The primary reason for higher than forecast expenditure for this item is that the cost escalators (labour and materials) used by the AER were lower than those submitted and forecasted by ActewAGL. The approved escalators are at a minimum 12.5% lower than the actual wages growth.
B42: Zone substation Reactive | C42: The primary reason for higher than forecast expenditure for this item is that the cost escalators (labour and materials) used by the AER were lower than those submitted and forecasted by ActewAGL. The approved escalators are at a minimum 12.5% lower than the actual wages growth.
B43: Subtransmission Planned | C43: The primary reason for higher than forecast expenditure for this item is that the cost escalators (labour and materials) used by the AER were lower than those submitted and forecasted by ActewAGL. The approved escalators are at a minimum 12.5% lower than the actual wages growth.
B44: Subtransmission Reactive | C44: The primary reason for higher than forecast expenditure for this item is that the cost escalators (labour and materials) used by the AER were lower than those submitted and forecasted by ActewAGL. The approved escalators are at a minimum 12.5% lower than the actual wages growth. In addition, since 2006/07, which was used as a base year for reactive works, there has been a 25% increase in the number faults on subtransmissions.
B45: Distribution Reactive | C45: The maintenance program has been restructured with underground, overhead & distribution substation rolled into one asset group distribution. The primary reason for higher than forecast expenditure for this item is that the cost escalators (labour and materials) used by the AER in the final decision were lower than those submitted by ActewAGL. The approved escalators are at a minimum 12.5% lower than the actual wages growth. In addition, as 2006/07 was used as a base year for reactive works, there has been a 25% increase in faults than in the base year.
B46: Distribution Planned | C46: The primary reason for higher than forecast expenditure for this item is that the cost escalators (labour and materials) used by the AER were lower than those submitted and forecasted by ActewAGL. The approved escalators are at a minimum 12.5% lower than the actual wages growth. The primary reason for higher than forecast expenditure is an increase in minor works arising from the pole inspection program.
B48: Table 3: Other network maintenance overhead costs
B50: Note: list items which are more than 5 per cent of the total standard control or alternative control network maintenance costs
B52: Statutory account code or reference to account code | C52: Description | D52: Audited statutory accounts | E52: Adjustments | F52: Distribution business
D53: $'000 nominal | E53: $'000 nominal | F53: $'000 nominal
C54: Metering Maintenance | D54: =E54+F54 -> 413.46278 | E54: 0 | F54: =J32 -> 413.46278
B61: Table 4: Related party transactions
B63: Note: list items which are more than 5 per cent of the total standard control or alternative control network maintenance costs
B65: Related party | C65: Description of related party transaction | G65: Total maintenance expenditure attributable to related party transaction
C70: Total related party transactions maintenance expenditure | G70: =SUM(G66:J69) -> 0

Sheet 10. Operating costs
B1: =Cover!C22 -> ActewAGL
B2: Network operating costs including overheads
B3: =Cover!C26 -> 2013-14
B5: This information is necessary for monitoring operating costs, and will be used to inform the AER’s assessment of operating costs and its underlying drivers at the next reset. It will also be used to assist in any comparative analysis undertaken by the AER within the current and future regulatory control periods.
B7: Table 1: Operating expenditure - network operation costs
B9: Statutory Account code or reference to account code | C9: Description | D9: Audited statutory accounts | E9: Adjustments | F9: Distribution business | G9: Standard control services | J9: Alternative control services | K9: Negotiated services | L9: Unregulated services
G10: Forecast | H10: Actual | I10: Difference | J10: Metering
D11: $'000 nominal | E11: $'000 nominal | F11: $'000 nominal | G11: $'000 nominal | H11: $'000 nominal | J11: $'000 nominal | K11: $'000 nominal | L11: $'000 nominal
C12: Network facilities Tax (UNFT) | D12: =SUM(E12:F12) -> 5572.17976 | E12: 0 | F12: =H12+J12+L12 -> 5572.17976 | G12: 4923.993691 | H12: 5572.17976 | I12: =(H12-G12)/G12 -> 0.1316382819 | J12: 0 | L12: 0
C13: Feed in tariff | D13: =SUM(E13:F13) -> 13865.77866 | E13: 0 | F13: =H13+J13+L13 -> 13865.77866 | G13: 17311.23296 | H13: 13865.77866 | I13: =(H13-G13)/G13 -> -0.1990299773 | J13: 0 | L13: 0
C14: Network operating expenditure
C15: Network control | D15: =SUM(E15:F15) -> 5837.20697 | E15: 45.54968689 | F15: =H15+J15+L15 -> 5791.657283 | G15: 4554.562505 | H15: 5791.657283 | I15: =(H15-G15)/G15 -> 0.2716165991 | J15: 0 | L15: 0
C16: IT planning and operations | D16: =SUM(E16:F16) -> 6382.29504 | E16: 49.80319221 | F16: =H16+J16+L16 -> 6332.491848 | G16: 1250.453551 | H16: 6332.491848 | I16: 4.064155995 | J16: 0 | L16: 0
C17: Network systems operations | D17: =SUM(E17:F17) -> 4064.78236 | E17: 31.71886224 | F17: 4033.063498 | G17: 3691.887101 | H17: 4033.063498 | I17: 0.09241246744 | J17: 0 | L17: 0
C18: Quality, environmental and safety systems | D18: 1465.41705 | E18: 11.43514152 | F18: 1453.981908 | G18: 1515.05323 | H18: 1453.981908 | I18: -0.040309687 | J18: 0 | L18: 0
C19: Executive & financial management | D19: 1173.22865 | E19: 0 | F19: 1173.22865 | G19: 2158.575513 | H19: 1173.22865 | I19: -0.4564801449 | J19: 0 | L19: 0
C20: Other network operating costs (itemise in table 3 below) | D20: =SUM(E20:F20) -> 18911.96824 | E20: 72.08384918 | F20: =H20+J20+L20 -> 18839.88439 | G20: 4817.478036 | H20: 8605.875731 | I20: 0.7863860856 | J20: 1486.09014 | L20: =('1. Income'!J23) -> 8747.91852
C21: Subtotal | D21: =SUM(D15:D20) -> 37834.89831 | E21: =SUM(E15:E20) -> 210.590732 | F21: =SUM(F15:F20) -> 37624.30758 | G21: =SUM(G15:G20) -> 17988.00994 | H21: =SUM(H15:H20) -> 27390.29892 | I21: 0.5226975644 | J21: =SUM(J15:J20) -> 1486.09014 | L21: =SUM(L15:L20) -> 8747.91852
C22: Other expenditures
C23: Non-network alternatives (demand management) | D23: =SUM(E23:F23) -> 559.60879 | E23: 0 | F23: =H23+J23+L23 -> 559.60879 | G23: 113.3810307 | H23: 559.60879 | I23: =(H23-G23)/G23 -> 3.935647406 | J23: 0 | L23: 0
C24: Advertising & marketing | D24: =SUM(E24:F24) -> 1403.36952 | E24: 0 | F24: =H24+J24+L24 -> 1403.36952 | G24: 1229.21004 | H24: 1403.36952 | I24: 0.1416840685 | J24: 0 | L24: 0
C25: Corporate management fee | D25: =SUM(E25:F25) -> 14347.61449 | E25: 4334.304285 | F25: 10013.3102 | G25: 12800.33982 | H25: 10013.3102 | I25: -0.2177309081 | J25: 0 | L25: 0
C26: Business services provided by ActewAGL retail | D26: 1758.35232 | E26: 0 | F26: 1758.35232 | G26: 2447.741985 | H26: 1758.35232 | I26: -0.2816431099 | J26: 0 | L26: 0
C27: Apprentice training program | D27: 5856.43988 | E27: 45.69976774 | F27: 5810.740112 | G27: 6011.387948 | H27: 5810.740112 | I27: -0.03337795487 | J27: 0 | L27: 0
C28: Business overheads | D28: 15763.54964 | E28: 0 | F28: 15763.54964 | G28: 3519.252062 | H28: 15763.54964 | I28: 3.479232906 | J28: 0 | L28: 0
C29: Regulated miscellaneous charges | D29: 1588.2602 | E29: 12.39372789 | F29: 1575.866472 | G29: 1499.098322 | H29: 1575.866472 | I29: 0.05120955001 | J29: 0 | L29: 0
C30: External business expenditure | D30: 257.9843 | E30: 0 | F30: 257.9843 | G30: -16.09829471 | H30: 257.9843 | I30: -17.02556697 | J30: 0 | L30: 0
C31: Non Electricity Operating Expenditure | D31: 55158.07803 | E31: ='1. Income'!E23-E30-E29-E28-E27-E26-E25-E24-E23-E21 -> 55158.07803 | F31: 0 | G31: 0 | H31: 0 | J31: 0 | L31: 0
C32: Sub-total | D32: =SUM(D23:D31) -> 96693.25717 | E32: =SUM(E23:E31) -> 59550.47581 | F32: 37142.78136 | G32: 27604.31291 | H32: 37142.78136 | I32: 0.3455426868 | J32: =SUM(J23:J31) -> 0 | L32: =SUM(L23:L31) -> 0
C33: Total | D33: =SUM(D21,D32) -> 134528.1555 | E33: =SUM(E21,E32) -> 59761.06654 | F33: =SUM(F21,F32) -> 74767.08894 | G33: =SUM(G21,G32) -> 45592.32285 | H33: =SUM(H21,H32) -> 64533.08028 | I33: =(H33-G33)/G33 -> 0.41543743 | J33: =SUM(J21,J32) -> 1486.09014 | L33: =SUM(L21,L32) -> 8747.91852
B35: Table 2: Explanation of material difference
B37: Note: all material differences identified in table 1 are to be explained in table 2.
B39: Category | C39: Explanation
B40: Network facilities Tax (UNFT) | C40: ActewAGL was advised that the ACT Government determined that the UNFT rate for 2013–14 was to be $945 per kilometre of network route length. The UNFT is payable to the ACT Government by the owners of utility network infrastructure that is located in the ACT. As a consequence of the rate determined for 2013–14, there is a difference of $0.6m between actual and forecast costs for the UNFT.
B41: Feed in tariff | C41: Feed in tariff rebates have been lower then expected for 2013/14 due to the combination of a lower rebate was offered then was budgeted and no large feed in tariff schemes were initiated in this period.
B42: Network control | C42: Network control is an output to the business & relies on time sheeting to cost this activity. The following reasons have driven this increase. Expenditure is higher then the allowance due to an additional 2.0 FTE were appointed in the operator & control room manager role which had been vacant for many years and as part of the new EBA operators & dispatchers are paid overtime penalties when covering employee who are on leave.
B43: IT planning and operations | C43: The primary reason for higher than forecast expenditure is that ActewAGL has undertaken a comprehensive review of the businesses data, systems and business processes. Outcomes of that review included scoping a business improvement Program of Work and associated Business Case. This expenditure has been deemed to be Opex and was not forecasted as part of the 2008 regulatory proposal.
B44: Executive & financial management | C44: The primary reason for lower than forecast expenditure for this item is related to a recent restructure of management within Networks. Expenditure on executive now is an overhead with the branches they manage.
B45: Other network operating costs | C45: This expenditure line includes regulatory costs in the 2013/14 year as part of the regulatory submission, preparation of RIN data which were not included nor expected in the submission to the AER. The other reason for higher than forecast expenditure for this item is a significant increase in the Energy Industry Levy & that the cost escalators (labour and materials) used by the AER were lower than those submitted and forecasted by ActewAGL. The approved escalators are at a minimum 10% lower than the actual wages growth.
B46: Non-network alternatives (demand management) | C46: ActewAGL has initiated a project called Power Factor Correction Scheme which was in its early planning stage up until 2013/14. Project has now progressed to field & most of the allowance was spent in the current reporting period.
B47: Advertising & marketing | C47: The primary reason for higher than forecast expenditure for this item is that there has an emphasis on advising the public on network issues such as vegetation clearing around lines and substations.
B48: Corporate management fee | C48: The primary reason for lower than forecast expenditure for this item is that program of work has increased significantly and as part of the costing methodology more overheads have been absorbed into projects.
B49: Business services provided by ActewAGL retail | C49: The primary reason for lower than forecast expenditure for this item is that a number of services which were provided by Retail are now done within Networks.
B50: Business overheads | C50: The primary reason for higher than forecast expenditure for this item relates to restructuring costs which included a comprehensive review of the Management Operating System (MOS) across Networks and redundancy expenditure.
B51: External business expenditure | C51: This cost category is to recover costs and depending of timing of invoicing customers there will be small over/under recoveries year to year.
B53: Table 3: Other network operating costs
B55: Note: list items which are more than 5 per cent of the total standard control or alternative control network operating costs
B57: Statutory Account code or reference to account code | C57: Description | D57: Audited statutory accounts | E57: Adjustments | F57: Distribution business
D58: $'000 nominal | E58: $'000 nominal | F58: $'000 nominal
C59: Regulatory & National Energy Market Operations | D59: =F59+E59 -> 6001.63462 | F59: 6001.63462
B66: Table 4: Related party transactions
B68: Note: list items which are more than 5 per cent of the total standard control or alternative control network operating costs
B70: Statutory Account code or reference to account code | C70: Related Party | D70: Audited statutory accounts | E70: Adjustments | F70: Distribution business | G70: Standard control services | J70: Alternative control services | K70: Negotiated services | L70: Unregulated services
G71: Forecast | H71: Actual | I71: Difference | J71: Metering
D72: $'000 nominal | E72: $'000 nominal | F72: $'000 nominal | G72: $'000 nominal | H72: $'000 nominal | J72: $'000 nominal | K72: $'000 nominal | L72: $'000 nominal
C73: ActewAGL Retail | D73: =E73+F73 -> 3521.57676 | E73: 0 | F73: =H73+J73+K73+L73 -> 3521.57676 | H73: 3521.57676
C74: ZINFRA CONTRACTING PTY LTD | D74: =E74+F74 -> 80.5 | E74: 0 | F74: =H74+J74+K74+L74 -> 80.5 | H74: 80.5
C75: AGL ENERGY LTD | D75: 125.225 | E75: 125.225 | F75: 0 | H75: 0
C76: AGL WHOLESALE GAS LTD | D76: 5075.380982 | E76: 5075.380982 | F76: 0 | H76: 0
C77: ACTEW CORPORATION LTD | D77: 10287.90262 | E77: 10286.72762 | F77: =H77+J77+K77+L77 -> 1.175 | H77: 1.175
C78: JEMENA ASSET MANAGEMENT PTY LTD | D78: 16224.08155 | E78: 16224.08155 | F78: 0 | H78: 0
B80: Table 5: Operating expenditure - non-recurrent network operating costs
B82: Note: list items which are more than 5 per cent of the total standard control or alternative control network operating costs
B84: Statutory Account code or reference to account code | C84: Description | D84: Audited statutory accounts | E84: Adjustments | F84: Distribution business | G84: Standard control services | J84: Alternative control services | K84: Negotiated services | L84: Unregulated services
G85: Forecast | H85: Actual | I85: Difference | J85: Metering
D86: $'000 nominal | E86: $'000 nominal | F86: $'000 nominal | G86: $'000 nominal | H86: $'000 nominal | J86: $'000 nominal | K86: $'000 nominal | L86: $'000 nominal
I87: =(H87-G87)/G87 -> 
B94: Table 6: Non–network alternatives (demand management) operating costs that are not captured by the DMIS ($ nominal)
B96: Statutory Account code or reference to account code | C96: Name of project | D96: Aims/goals of project | G96: Impact on demand (MW) | H96: Impact on demand (MW) | I96: Deferred capital costs from DM project ($ 000s nominal) | J96: Deferred capital costs from DM project ($ 000s nominal)
G97: Current year impact | H97: Whole of project life impact | I97: Current year impact | J97: Whole of project life impact
C101: Total | G101: 0 | H101: 0 | I101: 0 | J101: 0

Sheet 16. Avoided cost payments
B1: =Cover!C22 -> ActewAGL
B2: Avoided Cost Payments
B3: =Cover!C26 -> 2013-14
B5: This information is necessary for monitoring avoided cost payments, and will be used to inform the AER’s assessment of expenditure and its underlying drivers at the next reset. It will also be used to assist in any comparative analysis undertaken by the AER within the current and future regulatory control periods.
B7: Table 1: Avoided cost payments
B10: Statutory Account code or reference to account code | C10: Description | D10: Avoided cost payment ($'000 nominal)
C11: Embedded generators | D11: 0
C12: Avoided TUOS | D12: 0
C13: Other | D13: 0
C14: Total | D14: =SUM(D11:D13) -> 0

Sheet 17. Altern Ctl & other
B1: =Cover!C22 -> ActewAGL
B2: Alternative Control and Other Services
B3: =Cover!C26 -> 2013-14
B5: This information is necessary for monitoring Alternative control & other services, and will be used to inform the AER’s assessment of expenditure and its underlying drivers at the next reset. It will also be used to assist in any comparative analysis undertaken by the AER within the current and future regulatory control periods.
B7: Table 1: Alternative control and other services
B9: Statutory Account code or reference to account code | C9: Description | D9: Direct O&M Costs | E9: Indirect O&M costs | F9: Direct capex | G9: Indirect capex | H9: Total expenditure | I9: Revenue
C10: Metering | D10: $'000 nominal | E10: $'000 nominal | F10: $'000 nominal | G10: $'000 nominal | H10: $'000 nominal | I10: $'000 nominal
C11: Metering | D11: 1861.44722 | E11: 38.1057 | F11: ='5. Capex'!D66-G11 -> 3758.07247 | G11: 262.00566 | H11: =SUM(D11:G11) -> 5919.63105 | I11: ='1. Income'!H19 -> 8861.65925
C12: Total metering | D12: =SUM(D11:D11) -> 1861.44722 | E12: 38.1057 | F12: 3758.07247 | G12: 262.00566 | H12: 5919.63105 | I12: 8861.65925
C13: Other Activites - Unregulated
C14: Streetlight Maintenance & Construction, Training External | D14: 8552.78532 | E14: 195.1332 | F14: 0 | G14: 0 | H14: =SUM(D14:G14) -> 8747.91852 | I14: ='1. Income'!J19 -> 9848.38633
C15: Total Unregulated | D15: =SUM(D14:D14) -> 8552.78532 | E15: 195.1332 | F15: 0 | G15: 0 | H15: 8747.91852 | I15: 9848.38633
C16: TOTAL | D16: =SUM(D12,D15) -> 10414.23254 | E16: =SUM(E12,E15) -> 233.2389 | F16: 3758.07247 | G16: 262.00566 | H16: 14667.54957 | I16: 18710.04558

Sheet 18. EBSS
B1: =Cover!C22 -> ActewAGL
B2: Efficiency benefit sharing scheme
B3: =Cover!C26 -> 2013-14
B5: EBSS information is used by the AER to monitor EBSS scheme throughout the regulatory control period.
B7: Table 1: Opex for EBSS purposes
B9: Note: a) Only superannuation costs related to defined benefit schemes are to be reported b) Only self insurance cost categories approved in the AER's determination are to be reported
C12: $'000 nominal
B13: Total actual opex | C13: ='8. Maintenance'!H34+'10. Operating costs'!H33 -> 86732.80783
B14: Debt raising costs | C14: 0
B15: Self insurance | C15: 0
B16: Insurance | C16: 1101.25883
B17: Superannuation defined benefit retirement schemes | C17: 2386.39875
B18: Non network alternatives costs | C18: 559.60879
B19: Utilities network facilities tax payments | C19: 5572.17976
B20: Direct feed-in tariff payments | C20: 13865.77866
B21: Pass through event costs | C21: 0
B22: Capitalisation policy changes | C22: =C35 -> 0
B23: Total opex adjustment for EBSS purposes | C23: =SUM(C14:C22) -> 23485.22479
B24: Total opex for EBSS purposes | C24: =C13-C23 -> 63247.58304
B26: Table 2: Explanation of Capitalisation Policy Changes
B28: Note: this should include a description of any items that have previously been considered as opex items, but are now being considered capex items.
B30: Capitalisation policy change | C30: Impact of capitalisation changes on opex forecasts ($'000 nominal) | D30: Description
B35: Total | C35: =SUM(C31:C34) -> 0

Sheet 19. Juris Scheme
B1: =Cover!C22 -> ActewAGL
B2: Jurisdictional Scheme Amounts
B3: =Cover!C26 -> 2013-14
B5: Jurisdictional scheme information is used by the AER to monitor approved Jurisdictional schemes throughout the regulatory control period.
B7: Note: ActewAGL is only required to complete this worksheet for each approved Jurisdictional Scheme.
B9: Table 1: Jurisdictional Scheme Amounts
B11: Jurisdictional scheme name | C11: Jurisdictional Scheme Amounts ($'000 nominal)
B12: Network facilities Tax (UNFT) | C12: ='10. Operating costs'!H12 -> 5572.17976
B13: Feed in Tariff | C13: ='10. Operating costs'!D13 -> 13865.77866
B14: Energy Industry Levy | C14: 1448.9561
B16: Total jurisdictional scheme amounts | C16: =SUM(C12:C15) -> 20886.91452

Sheet 20. DMIS -DMIA
B1: =Cover!C22 -> ActewAGL
B2: Demand Management Incentive Scheme
B3: =Cover!C26 -> 2013-14
B5: Part A – DMIA annual report
B7: This information will form the basis of the AER’s assessment of the DNSP’s compliance with the DMIS, and its entitlement to recover expenditure under the DMIS. The information will also assist the AER in assessing proposals for demand management expenditure in opex and capex forecasts submitted in a DNSP’s regulatory proposals, and in the development and implementation of DMEGCIS, in future regulatory control periods.
B9: Table 1: DMIA projects submitted for approval
B11: Name of project | C11: Total amount of the DMIA spent in:
C12: =B3 -> 2013-14
C13: Operating expenditure ($'000 nominal) | D13: Capital expenditure ($'000 nominal) | E13: Total expenditure ($'000 nominal)
B14: Power Factor Correction Scheme | C14: =559608.79/1000 -> 559.60879 | E14: =SUM(C14:D14) -> 559.60879
B15: [Project 2] | E15: 0
B16: [Project 3] | E16: 0
B17: [Project 4] | E17: 0
B18: [Project 5] | E18: 0
B19: [Project 6] | E19: 0
B20: Total | C20: =SUM(C14:C19) -> 559.60879 | D20: =SUM(D14:D19) -> 0 | E20: =SUM(E14:E19) -> 559.60879

Sheet 21. Self insurance
B1: =Cover!C22 -> ActewAGL
B2: Self insurance
B3: =Cover!C26 -> 2013-14
B5: Information on actual, audited costs incurred by DNSPs on self insurance events (collected annually) will assist the AER with determining an appropriate self insurance allowance for DNSPs at the next regulatory reset. The information is required to be reported annually so that DNSPs can clearly demonstrate (to the AER) that their business processes and reporting systems properly account for self insurance events. This includes correctly accounting for the risks insured and costs to the DNSP.
B7: Table 1: Self insurance events with an incurred cost of greater than $100 000 per event.
B9: Type of self insurance event | C9: Date of event | D9: Description of event | H9: Cost of the event that relates to standard control services | I9: Other costs (eg costs related to unregulated services) | J9: Total cost of self insurance event | K9: Costs covered by external funding | L9: Costs recovered via a pass through mechanism | M9: Is information held that verifies the event?
H10: $'000 nominal | I10: $'000 nominal | J10: $'000 nominal | K10: $'000 nominal | L10: $'000 nominal
D19: Total actual cost of self insurance | H19: =SUM(H11:H18) -> 0 | I19: =SUM(I11:I18) -> 0 | J19: =SUM(J11:J18) -> 0 | K19: =SUM(K11:K18) -> 0 | L19: =SUM(L11:L18) -> 0
B20: Note: In 2012/13 Workers Compensation should not have been disclosed as not related to an AER approved self insurance event
B21: Table 2: Self insurance events with an incurred cost of less than $100 000 per event
B23: Number of events | C23: Costs of the events that relate to standard control services | D23: Costs covered by external funding | E23: Costs that do not relate to standard control services
C24: $'000 nominal | D24: $'000 nominal | E24: $'000 nominal
B27: Table 3: Total self insurance costs that relate to standard control services
B29: Total self insurance | D29: =H19+C25 -> 0

Sheet 22. CHAP
B1: =Cover!C22 -> ActewAGL
B2: Change of Accounting Policy
B3: =Cover!C26 -> 2013-14
B5: This information is required by the AER to assess forecast expenditure proposed by DNSPs at their next reset. It captures changes in accounting policies made from year to year and the effect on the Financial Statements. This information will increase transparency and accountability to stakeholders.
B7: Note: a) Only list those items where the adjustment amount for the item meets the materiality threshold applied in ActewAGL's statutory financial accounts b) Tables 1 and 2 capture both the changes in the application of accounting standards and changes in the accounting standards themselves.
B9: Table 1: Aggregate effect of the change in accounting policy on the balance sheet and income statements
B11: Statutory account code or reference to account code | C11: ActewAGL category | D11: Previously stated | E11: Adjustment | F11: Restated
C12: Balance Sheet | D12: ($'000 nominal) | E12: ($'000 nominal) | F12: ($'000 nominal)
C13: <Item> | E13: =F13-D13 -> 0
C14: <Item> | E14: =F14-D14 -> 0
C15: <Item> | E15: =F15-D15 -> 0
C16: Income Statement
C17: <Item> | E17: =F17-D17 -> 0
C18: <Item> | E18: =F18-D18 -> 0
C19: <Item> | E19: =F19-D19 -> 0
B21: Table 2: Reason for the change in accounting policy
B23: Statutory account code or reference to account code | C23: Description of change | D23: Reason for the change of accounting policy | G23: Items impacted
G24: <Item>
G25: <Item>
G26: <Item>
G27: <Item>

Sheet Amendments
B2: Amendments - RIN rationalisation
B4: Information no longer required from Annual Reporting RIN | D4: Reasoning
B5: (workbook/worksheet/table/row-column-cell)
B6: Financial information templates
B7: 2. Balance sheet | C7: Entire worksheet | D7: Redundant Information
B8: 3. Cash flow statement | C8: Entire worksheet | D8: Redundant Information
B9: 4. Changes in Equity | C9: Entire worksheet | D9: Redundant Information
B10: 6. Capex Overheads | C10: Entire worksheet | D10: Information in Category analysis RIN Worksheet 2.10
B11: 9. Maintenance Overheads | C11: Entire worksheet | D11: Information in Category analysis RIN Worksheet 2.10
B12: 11. Operating Overheads | C12: Entire worksheet | D12: Information in Category analysis RIN Worksheet 2.10
B13: 12. Cost categories | C13: Entire worksheet | D13: Information in Category analysis RIN Worksheet 2.12
B14: 13. Opex step changes | C14: Entire worksheet | D14: Information covered in 2012 RIN - Sheets 8 Maintenance, 10 Operating costs via explanation of material differences
B15: 14. Provisions | C15: Entire worksheet | D15: Information in Benchmarking RIN Table 3.3
B16: 15. Overheads allocation | C16: Entire worksheet | D16: Information in Category analysis RIN Worksheet 2.10

Sheet Working sheet
